[Event "Kragero Resort Chess B 2019"]
[Site "Kragero"]
[Date "2019.02.22"]
[Round "5.3"]
[White "Omtvedt, Per"]
[Black "Hestholm, Gustav"]
[Result "1-0"]
[ECO "B26"]
[WhiteElo "1918"]
[BlackElo "1660"]
[Annotator "NA"]
[PlyCount "73"]
[EventDate "2019.02.20"]
[EventType "swiss"]
[EventCountry "NOR"]
[SourceTitle "playchess.com"]
[Source "ChessBase"]
[SourceQuality "1"]
[TimeControl "5400+30"]

1. e4 {[%emt 0:00:00]} c5 {[%emt 0:00:00]} 2. Nc3 {[%emt 0:00:00]} Nc6 {[%emt 0:00:00]} 3. g3 {[%emt 0:00:03]} g6 {[%emt 0:00:05]} 4. Bg2 {[%emt 0:00:26]} Bg7 {[%emt 0:00:07]} 5. d3 {[%emt 0:00:11]} e6 {[%emt 0:01:06]} 6. Be3 {[%emt 0:00:16]} d6 {[%emt 0:00:12]} 7. Qd2 {[%emt 0:00:48]} Rb8 {[%emt 0:00:28]} 8. Nf3 {[%emt 0:02:00]} Nd4 {[%emt 0:01:35]} 9. Bxd4 {[%emt 0:01:23]} cxd4 {[%emt 0:01:49]} 10. Nb5 {[%emt 0:01:32]} e5 {[%emt 0:04:05]} 11. Qb4 {[%emt 0:04:26]} Bf8 {[%emt 0:00:12]} 12. Nxa7 {[%emt 0:07:46]} d5 {[%emt 0:05:10]} 13. Qb5+ {[%emt 0:02:10]} Bd7 {[%emt 0:02:39]} 14. Qxd5 {[%emt 0:00:58]} f6 {[%emt 0:02:18]} 15. Nxe5 {[%emt 0:03:20]} fxe5 {[%emt 0:02:02]} 16. Qxe5+ {[%emt 0:00:39]} Ne7 {[%emt 0:00:08]} 17. Qxh8 {[%emt 0:01:24]} Qa5+ {[%emt 0:00:13]} 18. Ke2 {[%emt 0:00:26]} Qxa7 {[%emt 0:00:06]} 19. Qxh7 {[%emt 0:04:50]} Rc8 {[%emt 0:01:17]} 20. Rhc1 {[%emt 0:00:47]} Rc5 {[%emt 0:02:37]} 21. Bh3 {[%emt 0:03:37]} Qa4 {[%emt 0:03:31]} 22. Bxd7+ {[%emt 0:00:27]} Qxd7 {[%emt 0:00:05]} 23. Qh4 {[%emt 0:01:14]} Rh5 {[%emt 0:00:56]} 24. Qf4 {[%emt 0:00:27]} Rxh2 {[%emt 0:05:18]} 25. Rh1 {[%emt 0:01:06]} Rxh1 {[%emt 0:00:18]} 26. Rxh1 {[%emt 0:00:03]} Bg7 {[%emt 0:02:46]} 27. Rh7 {[%emt 0:07:53]} Nc6 {[%emt 0:00:51]} 28. Qh4 {[%emt 0:01:18]} Nb4 {[%emt 0:01:43]} 29. Qh3 {[%emt 0:05:12]} Qe7 {[%emt 0:06:23]} 30. Qc8+ {[%emt 0:02:22]} Kf7 {[%emt 0:00:05]} 31. Qc4+ {[%emt 0:00:27]} Kf8 {[%emt 0:00:33]} 32. Qc8+ {[%emt 0:14:24]} Kf7 {[%emt 0:00:06]} 33. f4 {[%emt 0:04:55]} Na6 {[%emt 0:00:47]} 34. Qh8 {[%emt 0:02:31]} Kf6 {[%emt 0:01:25]} 35. e5+ {[%emt 0:00:54]} Kf5 {[%emt 0:00:08]} 36. Qxg7 {[%emt 0:00:31]} Qc5 {[%emt 0:00:23]} 37. Qf6+ {[%emt 0:00:20]} 1-0

[Event "Kragero Resort Chess B 2019"]
[Site "Kragero"]
[Date "2019.02.22"]
[Round "5.4"]
[White "Olsen, William Alexander"]
[Black "Manukyan, Hayk T."]
[Result "0-1"]
[ECO "A04"]
[WhiteElo "1646"]
[BlackElo "1806"]
[Annotator "NA"]
[PlyCount "66"]
[EventDate "2019.02.20"]
[EventType "swiss"]
[EventCountry "NOR"]
[SourceTitle "playchess.com"]
[Source "ChessBase"]
[SourceQuality "1"]
[TimeControl "5400+30"]

1. e4 {[%emt 0:00:00]} c5 {[%emt 0:00:00]} 2. Nf3 {[%emt 0:00:00]} g6 {[%emt 0:00:00]} 3. g3 {[%emt 0:00:00]} Bg7 {[%emt 0:01:33]} 4. Bg2 {[%emt 0:00:05]} Nc6 {[%emt 0:00:24]} 5. O-O {[%emt 0:00:27]} e6 {[%emt 0:01:42]} 6. c3 {[%emt 0:01:34]} Nge7 {[%emt 0:00:13]} 7. d4 {[%emt 0:00:20]} cxd4 {[%emt 0:00:06]} 8. cxd4 {[%emt 0:00:11]} d5 {[%emt 0:00:05]} 9. e5 {[%emt 0:00:56]} a6 {[%emt 0:08:26]} 10. Nc3 {[%emt 0:05:39]} Qb6 {[%emt 0:05:12]} 11. Na4 {[%emt 0:03:19]} Qa7 {[%emt 0:00:13]} 12. b3 {[%emt 0:03:59]} Nf5 {[%emt 0:01:18]} 13. Ba3 {[%emt 0:03:52]} Bf8 {[%emt 0:00:38]} 14. Bc5 {[%emt 0:02:35]} Bxc5 {[%emt 0:07:21]} 15. dxc5 {[%emt 0:00:37]} Bd7 {[%emt 0:00:23]} 16. Nb6 {[%emt 0:00:39]} Rd8 {[%emt 0:00:08]} 17. g4 {[%emt 0:01:04]} Nfe7 {[%emt 0:00:26]} 18. Qd2 {[%emt 0:03:16]} h6 {[%emt 0:00:56]} 19. Rfc1 {[%emt 0:16:55]} Nc8 {[%emt 0:00:52]} 20. Qe3 {[%emt 0:00:49]} Qb8 {[%emt 0:06:19]} 21. Qf4 {[%emt 0:05:04]} N6e7 {[%emt 0:01:57]} 22. Qf6 {[%emt 0:00:00]} Rh7 {[%emt 0:00:12]} 23. a4 {[%emt 0:03:44]} g5 {[%emt 0:03:37]} 24. Nxg5 {[%emt 0:05:07]} hxg5 {[%emt 0:01:43]} 25. Bf1 {[%emt 0:02:04]} Kf8 {[%emt 0:20:09]} 26. Qxg5 {[%emt 0:03:30]} Nxb6 {[%emt 0:06:46]} 27. cxb6 {[%emt 0:00:03]} Nc6 {[%emt 0:00:23]} 28. f4 {[%emt 0:00:24]} Nd4 {[%emt 0:01:47]} 29. Rc3 {[%emt 0:00:40]} Rc8 {[%emt 0:01:18]} 30. Rac1 {[%emt 0:00:16]} Nf3+ {[%emt 0:00:56]} 31. Rxf3 {[%emt 0:00:22]} Rxc1 {[%emt 0:00:02]} 32. f5 {[%emt 0:00:32]} Qxe5 {[%emt 0:00:29]} 33. Qxc1 {[%emt 0:00:18]} Qxh2# {[%emt 0:00:03]} 0-1

[Event "Kragero Resort Chess B 2019"]
[Site "Kragero"]
[Date "2019.02.22"]
[Round "5.5"]
[White "Espeland, Jonatan"]
[Black "Hausken, Andreas Skrede"]
[Result "1/2-1/2"]
[ECO "B49"]
[WhiteElo "1634"]
[BlackElo "1752"]
[Annotator "NA"]
[PlyCount "69"]
[EventDate "2019.02.20"]
[EventType "swiss"]
[EventCountry "NOR"]
[SourceTitle "playchess.com"]
[Source "ChessBase"]
[SourceQuality "1"]
[TimeControl "5400+30"]

1. e4 {[%emt 0:00:00]} c5 {[%emt 0:00:00]} 2. Nf3 {[%emt 0:00:00]} e6 {[%emt 0:00:00]} 3. d4 {[%emt 0:00:00]} cxd4 {[%emt 0:00:00]} 4. Nxd4 {[%emt 0:00:00]} Nc6 {[%emt 0:00:20]} 5. Nc3 {[%emt 0:02:39]} Qc7 {[%emt 0:00:09]} 6. Be3 {[%emt 0:00:37]} a6 {[%emt 0:00:09]} 7. Be2 {[%emt 0:00:57]} Nf6 {[%emt 0:01:10]} 8. a3 {[%emt 0:05:00]} b5 {[%emt 0:02:38]} 9. O-O {[%emt 0:01:13]} Bb7 {[%emt 0:03:29]} 10. f4 {[%emt 0:03:25]} Nxd4 {[%emt 0:04:10]} 11. Qxd4 {[%emt 0:00:17]} Rc8 {[%emt 0:00:29]} 12. Bf3 {[%emt 0:08:00]} Bc5 {[%emt 0:14:49]} 13. Qxc5 {[%emt 0:09:42]} Qxc5 {[%emt 0:00:33]} 14. Bxc5 {[%emt 0:00:02]} Rxc5 {[%emt 0:00:13]} 15. e5 {[%emt 0:00:27]} Bxf3 {[%emt 0:03:05]} 16. Rxf3 {[%emt 0:00:24]} Nd5 {[%emt 0:00:33]} 17. Nxd5 {[%emt 0:00:50]} Rxd5 {[%emt 0:00:29]} 18. Rd3 {[%emt 0:05:01]} Rxd3 {[%emt 0:02:26]} 19. cxd3 {[%emt 0:00:20]} d6 {[%emt 0:00:30]} 20. d4 {[%emt 0:08:43]} Kd7 {[%emt 0:03:04]} 21. Rc1 {[%emt 0:00:19]} Rc8 {[%emt 0:00:30]} 22. Rxc8 {[%emt 0:02:10]} Kxc8 {[%emt 0:00:20]} 23. Kf2 {[%emt 0:01:32]} Kc7 {[%emt 0:01:39]} 24. Ke3 {[%emt 0:00:54]} f5 {[%emt 0:02:27]} 25. b4 {[%emt 0:04:14]} Kc6 {[%emt 0:00:40]} 26. h3 {[%emt 0:06:01]} h6 {[%emt 0:01:45]} 27. Kd2 {[%emt 0:06:02]} Kd5 {[%emt 0:01:33]} 28. Kd3 {[%emt 0:00:08]} dxe5 {[%emt 0:00:24]} 29. dxe5 {[%emt 0:00:04]} g5 {[%emt 0:00:28]} 30. g3 {[%emt 0:00:29]} gxf4 {[%emt 0:08:31]} 31. gxf4 {[%emt 0:00:14]} h5 {[%emt 0:00:20]} 32. h4 {[%emt 0:00:03]} Kc6 {[%emt 0:00:20]} 33. Kd4 {[%emt 0:00:58]} Kb6 {[%emt 0:00:09]} 34. Kc3 {[%emt 0:00:08]} Kc6 {[%emt 0:00:14]} 35. Kd4 {[%emt 0:00:05]} 1/2-1/2

[Event "Kragero Resort Chess B 2019"]
[Site "Kragero"]
[Date "2019.02.22"]
[Round "5.6"]
[White "Opseth, Oliver"]
[Black "Gronn, Embla Ekeland"]
[Result "0-1"]
[ECO "D00"]
[WhiteElo "1750"]
[BlackElo "1633"]
[Annotator "NA"]
[PlyCount "64"]
[EventDate "2019.02.20"]
[EventType "swiss"]
[EventCountry "NOR"]
[SourceTitle "playchess.com"]
[Source "ChessBase"]
[SourceQuality "1"]
[TimeControl "5400+30"]

1. d4 {[%emt 0:00:00]} d5 {[%emt 0:00:00]} 2. Bf4 {[%emt 0:00:00]} Nf6 {[%emt 0:00:01]} 3. e3 {[%emt 0:00:00]} Bf5 {[%emt 0:01:23]} 4. c4 {[%emt 0:00:00]} e6 {[%emt 0:05:51]} 5. Qb3 {[%emt 0:01:40]} Qc8 {[%emt 0:03:25]} 6. Nc3 {[%emt 0:00:42]} c6 {[%emt 0:05:20]} 7. Nf3 {[%emt 0:05:45]} Be7 {[%emt 0:01:05]} 8. h3 {[%emt 0:05:48]} h6 {[%emt 0:03:13]} 9. Be2 {[%emt 0:02:16]} O-O {[%emt 0:01:52]} 10. g4 {[%emt 0:04:34]} Bh7 {[%emt 0:02:28]} 11. g5 {[%emt 0:04:57]} hxg5 {[%emt 0:13:09]} 12. Nxg5 {[%emt 0:00:26]} Bg6 {[%emt 0:01:48]} 13. Bg4 {[%emt 0:09:42]} Nxg4 {[%emt 0:18:34]} 14. hxg4 {[%emt 0:00:13]} e5 {[%emt 0:07:00]} 15. dxe5 {[%emt 0:03:29]} Qxg4 {[%emt 0:01:14]} 16. f3 {[%emt 0:02:28]} Qf5 {[%emt 0:00:47]} 17. Rg1 {[%emt 0:02:01]} Nd7 {[%emt 0:06:24]} 18. Qxb7 {[%emt 0:04:18]} Rab8 {[%emt 0:07:50]} 19. Qxc6 {[%emt 0:00:34]} Nxe5 {[%emt 0:12:07]} 20. Qxd5 {[%emt 0:09:35]} Nd3+ {[%emt 0:01:22]} 21. Kf1 {[%emt 0:00:44]} Rxb2 {[%emt 0:01:00]} 22. Ne2 {[%emt 0:02:24]} Bxg5 {[%emt 0:02:22]} 23. Qxf5 {[%emt 0:03:37]} Bxf5 {[%emt 0:00:02]} 24. Rxg5 {[%emt 0:00:56]} Bh3+ {[%emt 0:00:12]} 25. Kg1 {[%emt 0:00:18]} Rxe2 {[%emt 0:00:11]} 26. Bd6 {[%emt 0:00:15]} Rc8 {[%emt 0:01:10]} 27. c5 {[%emt 0:00:13]} Rxe3 {[%emt 0:01:08]} 28. f4 {[%emt 0:00:27]} Rf3 {[%emt 0:00:40]} 29. Rb1 {[%emt 0:00:35]} Nxf4 {[%emt 0:00:47]} 30. Kh2 {[%emt 0:00:53]} Ne6 {[%emt 0:00:43]} 31. Rh5 {[%emt 0:00:28]} Bf5 {[%emt 0:00:32]} 32. c6 {[%emt 0:00:33]} Bxb1 {[%emt 0:00:20]} 0-1

[Event "Kragero Resort Chess B 2019"]
[Site "Kragero"]
[Date "2019.02.22"]
[Round "5.7"]
[White "Bernstein, Jonas August"]
[Black "Berg, Thomas"]
[Result "1/2-1/2"]
[ECO "A80"]
[WhiteElo "1744"]
[BlackElo "2235"]
[Annotator "ChessBase"]
[PlyCount "118"]
[EventDate "2019.02.20"]
[EventType "swiss"]
[EventCountry "NOR"]
[SourceTitle "playchess.com"]
[Source "ChessBase"]
[SourceQuality "1"]
[TimeControl "5400+30"]

1. d4 {[%emt 0:00:34]} f5 {[%emt 0:00:00]} 2. Bg5 {[%emt 0:01:05]} g6 {[%emt 0:00:01]} 3. e3 {[%emt 0:00:32]} Bg7 {[%emt 0:00:57]} 4. Bc4 {[%emt 0:01:09]} d5 {[%emt 0:02:14]} 5. Bb3 {[%emt 0:00:12]} Nf6 {[%emt 0:01:36]} 6. Nf3 {[%emt 0:00:51]} O-O {[%emt 0:00:29]} 7. c4 {[%emt 0:01:07]} e6 {[%emt 0:04:38]} 8. Nc3 {[%emt 0:00:17]} c6 {[%emt 0:00:53]} 9. Ne5 {[%emt 0:03:46]} Qe8 {[%emt 0:02:15]} 10. h4 {[%emt 0:00:56]} Ne4 {[%emt 0:03:40]} 11. Bf4 {[%emt 0:00:48]} Nd7 {[%emt 0:00:43]} 12. Nf3 {[%emt 0:02:16]} Ndf6 {[%emt 0:02:19]} 13. Ne5 {[%emt 0:01:02]} Nd7 {[%emt 0:00:08]} 14. Nxd7 {[%emt 0:00:26]} Bxd7 {[%emt 0:00:48]} 15. f3 {[%emt 0:06:00]} Nxc3 {[%emt 0:06:13]} 16. bxc3 {[%emt 0:00:08]} e5 {[%emt 0:00:16]} 17. dxe5 {[%emt 0:03:01]} Bxe5 {[%emt 0:00:12]} 18. Bxe5 {[%emt 0:00:30]} Qxe5 {[%emt 0:00:09]} 19. Qd4 {[%emt 0:00:35]} Qxd4 {[%emt 0:07:04]} 20. exd4 {[%emt 0:03:22]} Rfe8+ {[%emt 0:01:55]} 21. Kd2 {[%emt 0:01:14]} dxc4 {[%emt 0:02:04]} 22. Bxc4+ {[%emt 0:00:08]} Kg7 {[%emt 0:02:26]} 23. Rab1 {[%emt 0:03:09]} b6 {[%emt 0:03:07]} 24. f4 {[%emt 0:02:46]} Be6 {[%emt 0:03:52]} 25. Bxe6 {[%emt 0:06:13]} Rxe6 {[%emt 0:00:06]} 26. Rbe1 {[%emt 0:00:30]} Rae8 {[%emt 0:00:14]} 27. Re5 {[%emt 0:00:38]} Rxe5 {[%emt 0:00:51]} 28. fxe5 {[%emt 0:02:32]} Kf7 {[%emt 0:00:20]} 29. Kd3 {[%emt 0:01:25]} Ke6 {[%emt 0:00:19]} 30. Kc4 {[%emt 0:02:43]} Rd8 {[%emt 0:00:40]} 31. Rb1 {[%emt 0:01:33]} Rd5 {[%emt 0:00:56]} 32. Rb2 {[%emt 0:01:05]} Ra5 {[%emt 0:01:31]} 33. g3 {[%emt 0:01:13]} h6 {[%emt 0:00:23]} 34. Rg2 {[%emt 0:02:14]} h5 {[%emt 0:03:53]} 35. Kd3 {[%emt 0:04:09]} Ra3 {[%emt 0:03:29]} 36. Rc2 {[%emt 0:00:35]} c5 {[%emt 0:03:20]} 37. dxc5 {[%emt 0:12:11]} bxc5 {[%emt 0:01:14]} 38. Re2 {[%emt 0:00:47]} Ra4 {[%emt 0:00:31]} 39. Re3 {[%emt 0:04:37]} Rxa2 {[%emt 0:09:52]} 40. Kc4 {[%emt 0:00:50]} Ra4+ {[%emt 0:10:56]} 41. Kxc5 {[%emt 0:00:58]} Ra5+ {[%emt 0:03:32]} 42. Kc6 {[%emt 0:06:18]} Ra4 {[%emt 0:01:49]} 43. Kc5 {[%emt 0:01:37]} Re4 {[%emt 0:00:24]} 44. Rd3 {[%emt 0:08:57]} Rxe5+ {[%emt 0:00:15]} 45. Kc6 {[%emt 0:00:22]} a5 {[%emt 0:00:46]} 46. c4 {[%emt 0:01:42]} Ke7 {[%emt 0:06:16]} 47. c5 {[%emt 0:00:54]} Re4 {[%emt 0:09:15]} 48. Kc7 {[%emt 0:06:15]} f4 {[%emt 0:01:27]} 49. gxf4 {[%emt 0:01:47]} Rxf4 {[%emt 0:00:22]} 50. Rg3 {[%emt 0:03:40]} Rg4 {[%emt 0:01:24]} 51. Re3+ {[%emt 0:00:30]} Kf6 {[%emt 0:00:29]} 52. Rh3 {[%emt 0:00:31]} Ke7 {[%emt 0:01:59]} 53. c6 {[%emt 0:01:08]} Rc4 {[%emt 0:01:25]} 54. Kb7 {[%emt 0:01:39]} Kf6 {[%emt 0:00:29]} 55. c7 {[%emt 0:00:27]} Rb4+ {[%emt 0:00:19]} 56. Kc6 {[%emt 0:01:07]} Rc4+ {[%emt 0:00:01]} 57. Kd7 {[%emt 0:00:23]} Rd4+ {[%emt 0:00:04]} 58. Kc6 {[%emt 0:00:51]} Rc4+ {[%emt 0:00:05]} 59. Kb7 {[%emt 0:00:30]} Rb4+ {[%emt 0:00:04]} 1/2-1/2

[Event "Kragero Resort Chess B 2019"]
[Site "Kragero"]
[Date "2019.02.23"]
[Round "6.1"]
[White "Wright, Haakon"]
[Black "Omtvedt, Per"]
[Result "1-0"]
[ECO "A29"]
[WhiteElo "1750"]
[BlackElo "1918"]
[Annotator "NA RC"]
[PlyCount "105"]
[EventDate "2019.02.20"]
[EventType "swiss"]
[EventCountry "NOR"]
[SourceTitle "playchess.com"]
[Source "ChessBase"]
[SourceQuality "1"]
[TimeControl "5400+30"]

1. c4 {[%emt 0:00:00]} e5 {[%emt 0:00:00]} 2. g3 {[%emt 0:00:00]} Nf6 {[%emt 0:04:14]} 3. Bg2 {[%emt 0:00:00]} d5 {[%emt 0:01:12]} 4. cxd5 {[%emt 0:00:00]} Nxd5 {[%emt 0:00:06]} 5. Nc3 {[%emt 0:00:14]} Nb6 {[%emt 0:00:28]} 6. Nf3 {[%emt 0:00:31]} Nc6 {[%emt 0:00:13]} 7. d3 {[%emt 0:02:58]} Be7 {[%emt 0:02:16]} 8. a3 {[%emt 0:01:38]} a5 {[%emt 0:01:18]} 9. b3 {[%emt 0:04:41]} O-O {[%emt 0:03:03]} 10. O-O {[%emt 0:00:34]} Be6 {[%emt 0:01:49]} 11. Nd2 {[%emt 0:04:50]} Qd7 {[%emt 0:02:19]} 12. Nc4 {[%emt 0:04:22]} Nd5 {[%emt 0:02:20]} 13. Bb2 {[%emt 0:04:36]} f6 {[%emt 0:02:17]} 14. Qd2 {[%emt 0:07:00]} Nd4 {[%emt 0:05:32]} 15. Nxd5 {[%emt 0:11:56]} Bxd5 {[%emt 0:01:34]} 16. Bxd5+ {[%emt 0:08:05]} Qxd5 {[%emt 0:00:43]} 17. Bxd4 {[%emt 0:02:17]} exd4 {[%emt 0:00:11]} 18. Qf4 {[%emt 0:04:00]} b5 {[%emt 0:03:02]} 19. Nd2 {[%emt 0:02:45]} Bd6 {[%emt 0:02:24]} 20. Qe4 {[%emt 0:07:34]} Qxe4 {[%emt 0:00:44]} 21. Nxe4 {[%emt 0:00:26]} Rfe8 {[%emt 0:01:01]} 22. Rfc1 {[%emt 0:03:35]} Ra6 {[%emt 0:01:04]} 23. Kf1 {[%emt 0:01:46]} Re5 {[%emt 0:03:29]} 24. Nxd6 {[%emt 0:02:43]} cxd6 {[%emt 0:00:19]} 25. Rc7 {[%emt 0:01:44]} Rc5 {[%emt 0:02:12]} 26. Rc1 {[%emt 0:01:46]} b4 {[%emt 0:06:42]} 27. axb4 {[%emt 0:06:09]} axb4 {[%emt 0:00:43]} 28. R7xc5 {[%emt 0:00:56]} dxc5 {[%emt 0:00:06]} 29. Rxc5 {[%emt 0:00:46]} Ra3 {[%emt 0:00:05]} 30. Rc4 {[%emt 0:00:56]} Rxb3 {[%emt 0:00:07]} 31. Rxd4 {[%emt 0:00:19]} Kf7 {[%emt 0:00:24]} 32. Rd7+ {[%emt 0:05:19]} Kg6 {[%emt 0:02:10]} 33. Rb7 {[%emt 0:01:16]} Rb2 {[%emt 0:00:14]} 34. Ke1 {[%emt 0:01:16]} f5 {[%emt 0:00:18]} 35. Rb6+ {[%emt 0:02:37]} Kg5 {[%emt 0:01:27]} 36. d4 {[%emt 0:00:41]} f4 {[%emt 0:02:35]} 37. gxf4+ {[%emt 0:02:44]} Kxf4 {[%emt 0:00:08]} 38. d5 {[%emt 0:00:51]} Ke5 {[%emt 0:00:09]} 39. d6 {[%emt 0:01:13]} Ke6 {[%emt 0:00:01]} 40. e4 {[%emt 0:01:24]} Rb1+ {[%emt 0:00:23]} 41. Kd2 {[%emt 0:01:29]} Rh1 {[%emt 0:00:08]} 42. f4 {[%emt 0:01:51]} Rxh2+ {[%emt 0:00:32]} 43. Ke3 {[%emt 0:00:35]} b3 {[%emt 0:00:31]} 44. f5+ {[%emt 0:00:12]} Kd7 {[%emt 0:00:21]} 45. e5 {[%emt 0:00:13]} Rh1 {[%emt 0:03:32]} 46. e6+ {[%emt 0:00:21]} Kc8 {[%emt 0:00:06]} 47. Kd4 {[%emt 0:01:35]} Rd1+ {[%emt 0:01:13]} 48. Kc3 {[%emt 0:00:15]} Rf1 {[%emt 0:00:21]} 49. Rc6+ {[%emt 0:00:44]} Kb7 {[%emt 0:01:21]} 50. Rc7+ {[%emt 0:00:09]} Kb6 {[%emt 0:00:11]} 51. e7 {[%emt 0:00:28]} Re1 {[%emt 0:01:27]} 52. Kxb3 {[%emt 0:00:45]} Re5 {[%emt 0:04:46]} 53. Rc8 {[%emt 0:00:29]} 1-0

[Event "Kragero Resort Chess B 2019"]
[Site "Kragero"]
[Date "2019.02.23"]
[Round "6.2"]
[White "Leonhardsen, Vebjorn Maanum"]
[Black "Halvorsen, Benjamin"]
[Result "1/2-1/2"]
[ECO "A26"]
[WhiteElo "1748"]
[BlackElo "1683"]
[Annotator "NA RC"]
[PlyCount "73"]
[EventDate "2019.02.20"]
[EventType "swiss"]
[EventCountry "NOR"]
[SourceTitle "playchess.com"]
[Source "ChessBase"]
[SourceQuality "1"]
[TimeControl "5400+30"]

1. c4 {[%emt 0:00:35]} e5 {[%emt 0:00:00]} 2. g3 {[%emt 0:00:06]} Nc6 {[%emt 0:00:01]} 3. Bg2 {[%emt 0:00:18]} g6 {[%emt 0:00:14]} 4. Nc3 {[%emt 0:00:19]} Bg7 {[%emt 0:00:20]} 5. d3 {[%emt 0:00:26]} d6 {[%emt 0:00:26]} 6. f4 {[%emt 0:00:47]} Nge7 {[%emt 0:05:54]} 7. Nf3 {[%emt 0:01:04]} O-O {[%emt 0:02:40]} 8. O-O {[%emt 0:02:56]} Bd7 {[%emt 0:09:40]} 9. e4 {[%emt 0:12:16]} exf4 {[%emt 0:02:07]} 10. Bxf4 {[%emt 0:02:19]} Nd4 {[%emt 0:09:10]} 11. Qd2 {[%emt 0:02:29]} Qc8 {[%emt 0:17:12]} 12. Bh6 {[%emt 0:00:43]} Bh3 {[%emt 0:01:40]} 13. Bxg7 {[%emt 0:01:12]} Nxf3+ {[%emt 0:00:15]} 14. Rxf3 {[%emt 0:01:22]} Kxg7 {[%emt 0:00:42]} 15. Bxh3 {[%emt 0:05:48]} Qxh3 {[%emt 0:00:06]} 16. Nd5 {[%emt 0:00:17]} Nxd5 {[%emt 0:00:51]} 17. cxd5 {[%emt 0:00:12]} Qh5 {[%emt 0:05:15]} 18. Raf1 {[%emt 0:03:51]} Qe5 {[%emt 0:06:45]} 19. Qc3 {[%emt 0:07:29]} Qxc3 {[%emt 0:02:44]} 20. bxc3 {[%emt 0:00:05]} Rae8 {[%emt 0:01:27]} 21. Rb1 {[%emt 0:01:29]} b6 {[%emt 0:08:59]} 22. Kf2 {[%emt 0:01:58]} Re5 {[%emt 0:00:59]} 23. Rb4 {[%emt 0:03:35]} Rfe8 {[%emt 0:02:51]} 24. g4 {[%emt 0:03:45]} h5 {[%emt 0:08:55]} 25. h3 {[%emt 0:00:49]} hxg4 {[%emt 0:01:17]} 26. hxg4 {[%emt 0:00:16]} Rh8 {[%emt 0:01:03]} 27. Kg2 {[%emt 0:01:06]} Rh4 {[%emt 0:00:47]} 28. Rg3 {[%emt 0:00:39]} Kh6 {[%emt 0:01:20]} 29. Rh3 {[%emt 0:01:13]} Rxh3 {[%emt 0:02:53]} 30. Kxh3 {[%emt 0:00:18]} Kg5 {[%emt 0:00:13]} 31. Kg3 {[%emt 0:00:42]} f5 {[%emt 0:01:06]} 32. gxf5 {[%emt 0:00:31]} gxf5 {[%emt 0:00:08]} 33. Kf3 {[%emt 0:02:01]} a5 {[%emt 0:01:57]} 34. Rb2 {[%emt 0:00:48]} Re7 {[%emt 0:01:29]} 35. Rg2+ {[%emt 0:01:04]} Kf6 {[%emt 0:00:06]} 36. Kf4 {[%emt 0:01:10]} fxe4 {[%emt 0:00:22]} 37. dxe4 {[%emt 0:00:16] Ke5+ [%emt 00:03:39]} 1/2-1/2

[Event "Kragero Resort Chess B 2019"]
[Site "Kragero"]
[Date "2019.02.23"]
[Round "6.3"]
[White "Manukyan, Hayk T."]
[Black "Tumanyan, Simon H."]
[Result "1/2-1/2"]
[ECO "D13"]
[WhiteElo "1806"]
[BlackElo "1704"]
[Annotator "NA RC"]
[PlyCount "40"]
[EventDate "2019.02.20"]
[EventType "swiss"]
[EventCountry "NOR"]
[SourceTitle "playchess.com"]
[Source "ChessBase"]
[SourceQuality "1"]
[TimeControl "5400+30"]

1. d4 {[%emt 0:00:00]} d5 {[%emt 0:00:00]} 2. c4 {[%emt 0:00:00]} c6 {[%emt 0:00:10]} 3. cxd5 {[%emt 0:00:00]} cxd5 {[%emt 0:00:00]} 4. Nc3 {[%emt 0:00:00]} Nf6 {[%emt 0:00:00]} 5. Nf3 {[%emt 0:00:00]} Nc6 {[%emt 0:00:00]} 6. a3 {[%emt 0:00:00]} e6 {[%emt 0:00:08]} 7. Bg5 {[%emt 0:00:06]} Be7 {[%emt 0:00:06]} 8. e3 {[%emt 0:00:07]} O-O {[%emt 0:00:06]} 9. Bd3 {[%emt 0:00:02]} h6 {[%emt 0:00:12]} 10. Bxf6 {[%emt 0:00:05]} Bxf6 {[%emt 0:00:06]} 11. O-O {[%emt 0:00:04]} Bd7 {[%emt 0:00:12]} 12. b4 {[%emt 0:00:09]} Rc8 {[%emt 0:00:09]} 13. Qb3 {[%emt 0:00:06]} a6 {[%emt 0:00:10]} 14. Rac1 {[%emt 0:00:15]} g5 {[%emt 0:00:34]} 15. Nd2 {[%emt 0:00:43]} Bg7 {[%emt 0:00:15]} 16. Na4 {[%emt 0:01:40]} e5 {[%emt 0:01:02]} 17. dxe5 {[%emt 0:00:32]} Nxe5 {[%emt 0:00:02]} 18. Rxc8 {[%emt 0:00:15]} Qxc8 {[%emt 0:00:13]} 19. Nb6 {[%emt 0:00:19]} Qd8 {[%emt 0:00:27]} 20. Nxd7 {[%emt 0:00:41]} Qxd7 {[%emt 0:00:05]} 1/2-1/2